bitfinex/quotes_SOLUSD_20240705
["timestamp","ask_amount","ask_price","bid_price","bid_amount"]
[1720218190252,20.0,135.15,135.12,0.7619359]
[1720218190456,107.71651118,135.18,135.14,7.3997]
[1720218190660,20.0,135.17,135.14,7.3997]
[1720218190847,20.0,135.17,135.13,7.4001]
[1720218191164,20.0,135.17,135.12,0.7619359]
[1720218191165,20.0,135.17,135.14,7.3997]
[1720218191374,100.0,135.16,135.12,0.7619359]
[1720218191747,100.0,135.14,135.12,0.7619359]
[1720218191971,0.17,135.13,135.12,0.7619359]
[1720218193546,20.17,135.13,135.12,0.7619359]
[1720218197054,0.17,135.13,135.12,0.7619359]
[1720218198370,0.17,135.14,135.12,0.7619359]
[1720218198673,20.17,135.14,135.12,0.7619359]
[1720218198851,0.17,135.14,135.12,0.7619359]
[1720218199285,20.17,135.14,135.12,0.7619359]
[1720218199777,0.17,135.14,135.12,8.1626359]
[1720218199955,0.17,135.15,135.12,8.1626359]
[1720218201353,7.72226807,135.16,135.13,7.4]
[1720218201857,100.0,135.18,135.13,7.4]
[1720218202157,107.70809624,135.18,135.13,7.4]
[1720218202874,0.17,135.17,135.13,7.4]
[1720218203076,20.17,135.17,135.13,7.4]
[1720218203277,20.17,135.17,135.12,0.7619359]
[1720218204171,20.17,135.17,135.12,8.1627359]
[1720218204482,100.0,135.16,135.12,0.7619359]
[1720218204783,20.17,135.15,135.12,0.7619359]
[1720218204968,0.17,135.15,135.12,0.7619359]
[1720218206567,20.17,135.15,135.12,0.7619359]
[1720218206873,100.0,135.14,135.12,0.7619359]
[1720218207066,0.17,135.13,135.12,0.7619359]
[1720218208181,20.0,135.15,135.12,0.7619359]
[1720218208381,0.17,135.14,135.12,0.7619359]
[1720218208610,100.17,135.14,135.12,0.7619359]
[1720218208956,0.17,135.14,135.12,0.7619359]
[1720218209489,100.17,135.14,135.12,0.7619359]
[1720218209988,0.17,135.14,135.12,0.7619359]
[1720218210285,0.17,135.14,135.12,8.1626359]
[1720218210466,100.17,135.14,135.12,0.7619359]
[1720218211984,0.17,135.14,135.12,0.7619359]
[1720218214565,106.4526,135.13,135.11,0.1]
[1720218214768,100.0,135.11,135.05,7.4045]
[1720218214965,100.0,135.09,135.05,7.4045]
[1720218215173,100.0,135.09,135.01,6.2932]
[1720218215174,20.17,135.08,135.01,0.1]
[1720218215473,20.17,135.08,135.03,7.4057]
[1720218216294,20.17,135.08,135.05,7.4046]
[1720218216866,20.17,135.08,135.01,0.1]
[1720218219689,20.17,135.08,135.04,7.4051]
[1720218220161,106.02375184,135.11,135.06,7.404]
[1720218220162,20.0,135.07,135.06,7.404]
[1720218220367,100.0,135.11,135.06,7.404]
[1720218220605,0.17,135.1,135.07,7.4034]
[1720218220899,119.72081239,135.13,135.07,7.4034]
[1720218222097,119.72081239,135.13,135.08,7.403]
[1720218222488,20.0,135.12,135.08,7.403]
[1720218222870,27.71206596,135.12,135.08,7.403]
[1720218223071,0.17,135.11,135.08,7.403]
[1720218223272,0.17,135.11,135.07,7.4034]
[1720218225299,27.71206596,135.12,135.08,7.4028]
[1720218225591,7.71206596,135.12,135.08,7.4028]
[1720218225890,7.71206596,135.12,135.06,23.5834]
[1720218225891,100.17,135.11,135.06,23.5834]
[1720218226073,0.17,135.11,135.06,23.5834]
[1720218226603,0.17,135.11,135.07,7.4032]
[1720218226815,20.17,135.11,135.08,7.4029]
[1720218227092,0.17,135.11,135.09,7.4022]
[1720218227295,0.17,135.11,135.08,7.4028]
[1720218227605,0.17,135.11,135.06,16.1797]
[1720218229301,0.17,135.11,135.08,7.4026]
[1720218229686,7.71206596,135.12,135.09,7.4023]
[1720218230598,6.4526,135.13,135.09,7.4023]
[1720218230799,20.0,135.12,135.09,7.4023]
[1720218232183,20.0,135.12,135.1,7.4018]
[1720218232704,20.17,135.13,135.1,7.4018]
[1720218232872,0.17,135.13,135.1,7.4018]
[1720218233299,7.70737436,135.14,135.07,44.43]
[1720218233634,7.70737436,135.14,135.12,7.4006]
[1720218233786,113.06923415,135.17,135.12,7.4006]
[1720218233787,13.41,135.15,135.12,7.4006]
[1720218233987,7.711023,135.16,135.13,13.41]
[1720218234184,13.41,135.19,135.15,7.399]
[1720218234582,13.41,135.18,135.14,7.3995]
[1720218234983,13.41,135.18,135.15,7.3991]
[1720218235181,107.70828097,135.2,135.15,7.3991]
[1720218235384,107.70828097,135.2,135.16,7.3984]
[1720218235385,13.41,135.19,135.16,7.3984]
[1720218236007,7.70828097,135.2,135.17,7.398]
[1720218236204,7.70828097,135.2,135.16,7.3985]
[1720218236704,20.0,135.19,135.16,7.3985]
[1720218236901,20.0,135.19,135.17,7.3979]
[1720218237080,7.70828097,135.2,135.12,60.6393]
[1720218237409,126.42859839,135.26,135.15,50.568]
[1720218237601,16.0832,135.27,135.15,77.368]
[1720218237811,100.0,135.28,135.22,7.3949]
[1720218237990,7.70797755,135.27,135.22,7.3949]
[1720218238493,7.70797755,135.27,135.23,7.3947]
[1720218239590,7.70797755,135.27,135.24,7.3942]
[1720218240282,7.70797755,135.27,135.24,7.3941]
[1720218240585,7.70797755,135.27,135.26,7.3931]
[1720218240896,101.45118081,135.32,135.26,7.3931]
[1720218240897,100.0,135.32,135.26,7.3931]
[1720218241206,7.70650797,135.29,135.26,7.3931]
[1720218241398,100.0,135.32,135.27,7.3925]
[1720218241595,7.69724836,135.31,135.27,7.3925]
[1720218241910,20.0,135.3,135.26,7.393]
[1720218244016,7.69724836,135.31,135.26,7.393]
[1720218244189,7.69724836,135.31,135.27,7.3922]
[1720218244701,7.69724836,135.31,135.21,77.368]
[1720218245212,20.0,135.3,135.21,77.368]
[1720218245420,20.0,135.3,135.26,7.3927]
[1720218246217,20.0,135.3,135.24,7.3938]
[1720218246425,20.0,135.3,135.21,50.568]
[1720218246723,20.0,135.3,135.25,7.3933]
[1720218247095,20.0,135.3,135.26,7.3929]
[1720218249724,0.17,135.29,135.23,7.3947]
[1720218250097,0.17,135.29,135.24,7.3942]
[1720218250405,0.17,135.29,135.23,7.3946]
[1720218250732,107.3932,135.26,135.2,16.2093]
[1720218251038,7.3955,135.22,135.17,16.0537]
[1720218251197,0.17,135.23,135.17,7.398]
[1720218251395,0.17,135.23,135.18,7.3974]
[1720218251396,20.17,135.23,135.18,7.3974]
[1720218251826,100.0,135.22,135.14,16.0537]
[1720218252001,20.17,135.21,135.14,16.0537]
[1720218252917,20.17,135.21,135.17,7.3977]
[1720218253332,20.0,135.21,135.14,60.4837]
[1720218253498,120.17,135.22,135.14,16.0537]
[1720218253697,120.17,135.22,135.17,7.398]
[1720218253899,20.17,135.22,135.14,60.4837]
[1720218254321,120.17,135.22,135.14,60.4837]
[1720218254521,120.17,135.22,135.17,7.3977]
[1720218255107,120.17,135.22,135.14,60.4837]
[1720218255108,20.17,135.22,135.14,60.4837]
[1720218255429,20.0,135.22,135.21,7.3959]
[1720218255717,100.0,135.26,135.2,7.3962]
[1720218255894,0.17,135.25,135.2,7.3962]
[1720218256099,115.10167916,135.26,135.2,7.3962]
[1720218257104,107.70837916,135.26,135.21,7.3957]
[1720218257417,0.17,135.25,135.21,7.3957]
[1720218257727,0.17,135.25,135.2,7.3963]
[1720218258424,20.17,135.25,135.2,7.3963]
[1720218259221,20.17,135.25,135.21,7.3958]
[1720218259608,20.17,135.25,135.2,7.3963]
[1720218259824,20.17,135.25,135.21,7.3958]
[1720218260499,20.17,135.25,135.22,7.3953]
[1720218260703,20.0,135.25,135.23,7.3947]
[1720218261332,20.0,135.26,135.23,7.3947]
[1720218261699,7.70956789,135.27,135.24,7.3937]
[1720218261906,6.2202,135.3,135.25,7.3936]
[1720218262405,7.70724123,135.29,135.24,7.394]
[1720218263329,20.0,135.28,135.24,7.394]
[1720218264432,20.0,135.28,135.23,7.3946]
[1720218264606,20.0,135.28,135.24,7.3942]
[1720218264927,20.0,135.28,135.23,7.3947]
[1720218265103,7.563,135.27,135.21,7.3955]
[1720218265306,127.3933,135.26,135.2,7.3963]
[1720218265527,7.5638,135.25,135.18,16.0537]
[1720218265833,6.2202,135.23,135.18,7.3971]
[1720218266002,6.2202,135.23,135.19,7.3965]
[1720218266206,20.0,135.24,135.21,7.3958]
[1720218266503,20.17,135.25,135.2,7.3962]
[1720218266712,27.5637,135.25,135.2,7.3962]
[1720218266935,107.3943,135.24,135.18,7.3971]
[1720218267132,0.17,135.23,135.18,7.3971]
[1720218267333,20.17,135.23,135.18,7.3971]
[1720218267823,20.17,135.23,135.19,7.3967]
[1720218268222,20.17,135.23,135.2,7.3964]
[1720218268412,0.17,135.23,135.2,7.3964]
[1720218268621,0.17,135.24,135.21,7.3957]
[1720218268827,20.0,135.25,135.19,7.3966]
[1720218269041,100.17,135.24,135.19,7.3966]
[1720218269209,20.0,135.23,135.19,7.3966]
[1720218269535,20.0,135.23,135.21,7.3958]
[1720218269716,21.6074,135.26,135.16,44.43]
[1720218269915,21.6074,135.26,135.22,7.3949]
[1720218271020,6.2202,135.26,135.23,7.3947]
[1720218272137,6.2202,135.26,135.22,7.3952]
[1720218273040,6.2202,135.26,135.23,7.3947]
[1720218274218,6.2202,135.26,135.24,7.3942]
[1720218274610,6.2202,135.26,135.23,7.3946]
[1720218276836,6.2202,135.26,135.24,7.3941]
[1720218277035,7.71216213,135.27,135.24,7.3941]
[1720218277418,7.71216213,135.27,135.25,7.3936]
[1720218279139,7.71216213,135.27,135.26,7.3931]
[1720218279444,7.71216213,135.27,135.25,7.3935]
[1720218279627,7.71216213,135.27,135.21,71.23]
[1720218279628,6.94433415,135.33,135.21,71.23]
[1720218279829,129.6105,135.34,135.28,7.3916]
[1720218280027,7.70836364,135.33,135.28,7.3918]
[1720218280334,15.09766364,135.33,135.28,7.3918]
[1720218280641,107.3902,135.32,135.26,7.3927]
[1720218281016,20.0,135.31,135.26,7.3927]
[1720218281341,20.0,135.31,135.27,7.3924]
[1720218281641,20.17,135.32,135.27,7.3924]
[1720218281811,0.17,135.31,135.27,7.3924]
[1720218282009,20.0,135.32,135.28,7.392]
[1720218282244,20.0,135.32,135.29,7.3914]
[1720218282626,20.0,135.32,135.3,7.3909]
[1720218282823,7.70836364,135.33,135.3,7.3909]
[1720218283821,17.22977749,135.37,135.32,7.3898]
[1720218283822,23.64127749,135.37,135.32,7.3898]
[1720218284140,23.64127749,135.37,135.26,60.9788]
[1720218284141,100.0,135.36,135.31,7.3902]
[1720218284335,100.0,135.36,135.29,7.391]
[1720218284655,100.0,135.36,135.3,7.3909]
[1720218284831,100.0,135.36,135.31,7.3904]
[1720218285330,20.17,135.35,135.31,7.3904]
[1720218285550,20.17,135.35,135.3,7.3907]
[1720218287061,20.0,135.35,135.32,7.3898]
[1720218287229,20.0,135.36,135.31,7.3903]
[1720218287428,27.71170878,135.36,135.31,7.3903]
[1720218287649,0.17,135.35,135.31,7.3903]
[1720218287954,27.71170878,135.36,135.31,7.3903]
[1720218289357,0.17,135.35,135.26,60.9788]
[1720218289555,7.5582,135.35,135.3,7.3908]
[1720218289735,20.0,135.34,135.3,7.3908]
[1720218290249,20.17,135.35,135.3,7.3908]
[1720218290567,6.359,135.31,135.26,7.3928]
[1720218290728,0.17,135.3,135.26,7.3928]
[1720218291723,100.17,135.3,135.26,7.3928]
[1720218293733,6.359,135.31,135.29,7.3914]
[1720218294358,0.17,135.3,135.26,7.3927]
[1720218294522,20.17,135.3,135.26,7.3927]
[1720218294726,20.17,135.3,135.27,7.3925]
[1720218295256,20.17,135.3,135.23,60.5651]
[1720218295257,20.0,135.3,135.28,7.3919]
[1720218295957,20.0,135.3,135.27,7.3924]
[1720218299537,20.0,135.3,135.28,7.3918]
[1720218299742,20.0,135.3,135.29,7.3915]
[1720218299942,6.359,135.31,135.29,7.3913]
[1720218300465,7.71003616,135.33,135.3,7.3909]
[1720218301659,7.71003616,135.33,135.31,7.3902]
[1720218301874,6.359,135.34,135.31,7.3902]
[1720218302234,7.3902,135.32,135.26,7.3927]
[1720218302445,7.3895,135.33,135.28,7.3919]
[1720218302947,113.748,135.34,135.28,7.3919]
[1720218303136,0.17,135.33,135.28,7.3919]
[1720218303466,20.17,135.33,135.28,7.3919]
[1720218304066,27.5596,135.33,135.27,7.3924]
[1720218304446,7.3899,135.32,135.27,7.3924]
[1720218304649,20.17,135.31,135.27,7.3924]
[1720218304846,20.0,135.31,135.27,7.3924]
[1720218305276,20.0,135.32,135.27,7.3924]
[1720218305438,0.17,135.31,135.27,7.3924]
[1720218305837,20.0,135.32,135.29,7.3915]
[1720218306040,20.0,135.33,135.29,7.3915]
[1720218306259,20.0,135.33,135.3,7.3908]
[1720218307838,20.0,135.33,135.31,7.3903]
[1720218308036,7.71917113,135.36,135.3,59.497]
[1720218308235,6.5108,135.38,135.35,7.3882]
[1720218308459,6.5108,135.38,135.37,7.3871]
[1720218308699,0.1,135.39,135.37,7.3871]
[1720218308880,0.1,135.39,135.38,7.3866]
[1720218309671,0.1,135.39,135.36,7.3876]
[1720218309847,0.1,135.39,135.3,59.497]
[1720218310166,0.1,135.39,135.31,0.17]
[1720218310553,0.1,135.39,135.33,44.43]
[1720218311370,0.1,135.39,135.37,7.3866]
[1720218311763,0.1,135.39,135.37,7.3871]
[1720218312056,0.1,135.39,135.31,44.6]
[1720218312252,0.1,135.39,135.32,64.43]
[1720218312477,0.1,135.39,135.36,7.3876]
[1720218313052,0.1,135.39,135.38,7.3866]
[1720218313254,0.1,135.39,135.34,7.3884]
[1720218313459,27.4861,135.39,135.33,7.3888]
[1720218313661,100.0,135.38,135.33,7.3888]
[1720218313881,20.1,135.39,135.34,7.3886]
[1720218314187,20.1,135.39,135.3,59.497]
[1720218314488,6.5108,135.37,135.28,44.43]
[1720218314685,20.17,135.36,135.32,7.3897]
[1720218315379,120.17,135.36,135.32,7.3897]
[1720218315680,135.5432,135.36,135.26,59.497]
[1720218315860,7.3887,135.35,135.28,7.3916]
[1720218316201,20.17,135.34,135.29,7.3914]
[1720218316362,20.0,135.34,135.29,7.3914]
[1720218316566,20.0,135.34,135.3,7.3909]
[1720218316767,20.0,135.35,135.3,7.3909]
[1720218317085,0.17,135.34,135.31,7.3903]
[1720218318281,0.17,135.34,135.3,7.3909]
[1720218318480,0.17,135.34,135.27,7.3921]
[1720218318481,107.5587,135.34,135.27,7.3921]
[1720218318697,20.0,135.33,135.26,15.067]
[1720218318856,0.17,135.32,135.26,15.067]
[1720218319981,0.17,135.32,135.28,7.3917]
[1720218320780,0.17,135.32,135.26,15.067]
[1720218320998,15.3732,135.36,135.33,7.3893]
[1720218321171,115.3732,135.36,135.31,7.3903]
[1720218321364,100.0,135.34,135.29,7.3913]
[1720218321593,100.0,135.34,135.26,15.067]
[1720218321887,100.0,135.34,135.29,7.3911]
[1720218322262,0.17,135.33,135.29,7.3911]
[1720218323085,0.17,135.33,135.3,7.3908]
[1720218324294,7.72608101,135.34,135.31,7.3903]
[1720218324474,7.72608101,135.34,135.26,59.497]
[1720218324784,0.17,135.35,135.33,7.3891]
[1720218324990,14.23290241,135.37,135.34,7.3887]
[1720218325191,6.5108,135.37,135.33,7.3891]
[1720218326185,20.0,135.36,135.33,7.3891]
[1720218327186,20.0,135.36,135.34,7.3887]
[1720218327383,6.5108,135.37,135.36,7.3877]
[1720218327583,15.4732,135.39,135.37,7.3867]
[1720218327584,0.1,135.39,135.37,7.3867]
[1720218328388,0.1,135.39,135.38,7.3866]
[1720218328585,0.1,135.39,135.37,7.387]
[1720218330091,0.1,135.39,135.32,59.6439]
[1720218330092,0.1,135.39,135.38,7.3866]
[1720218336301,3.1,135.39,135.38,7.3866]
[1720218340009,8.6175384,135.46,135.45,7.3827]
[1720218340314,0.8891015,135.46,135.44,7.3831]
[1720218340512,0.8891015,135.46,135.4,44.43]
[1720218340690,0.8891015,135.46,135.45,7.3827]
[1720218341314,0.8891015,135.46,135.44,7.3833]
[1720218341678,0.8891015,135.46,135.45,7.3827]
[1720218344499,0.8891015,135.46,135.43,7.3835]
[1720218344703,0.8891015,135.46,135.35,44.43]
[1720218344704,6.2661,135.45,135.35,44.43]
[1720218345009,100.0,135.42,135.34,15.2139]
[1720218345221,100.0,135.44,135.34,15.2139]
[1720218345384,0.17,135.43,135.34,15.2139]
[1720218345587,0.17,135.43,135.34,59.6439]
[1720218345983,0.17,135.43,135.4,7.3854]
[1720218346184,0.17,135.43,135.34,59.6439]
[1720218346495,107.3848,135.42,135.36,7.3875]
[1720218346705,20.17,135.41,135.32,71.23]
[1720218346995,0.17,135.4,135.32,71.23]
[1720218347590,0.17,135.4,135.37,7.3871]
[1720218347789,20.0,135.41,135.39,7.3857]
[1720218347989,0.17,135.42,135.41,7.3849]
[1720218348208,0.17,135.42,135.32,71.23]
[1720218348413,0.17,135.42,135.39,7.3859]
[1720218350413,0.17,135.42,135.4,7.3853]
[1720218350616,6.2661,135.45,135.41,7.3849]
[1720218350816,120.17,135.44,135.32,71.23]
[1720218350998,100.0,135.42,135.34,44.43]
[1720218351201,0.17,135.41,135.34,44.43]
[1720218351509,0.17,135.41,135.39,7.3859]
[1720218352015,7.72995135,135.42,135.41,7.3849]
[1720218352214,20.0,135.44,135.41,7.3849]
[1720218352416,13.99452887,135.45,135.42,7.3844]
[1720218352595,13.99452887,135.45,135.43,7.3837]
[1720218352802,6.2661,135.45,135.44,7.3833]
[1720218355323,0.8891015,135.46,135.45,7.3827]
[1720218359330,0.8891015,135.46,135.37,21.4985]
[1720218359331,0.8891015,135.46,135.44,7.3832]
[1720218359643,0.8891015,135.46,135.37,21.4985]
[1720218359644,0.8891015,135.46,135.43,7.3838]
[1720218360344,0.8891015,135.46,135.42,7.3842]
[1720218360542,6.4029,135.45,135.42,7.3842]
[1720218360827,6.4029,135.45,135.38,26.8]
[1720218360828,0.17,135.44,135.41,7.3848]
[1720218361717,20.17,135.44,135.4,7.3853]
[1720218361925,20.17,135.44,135.41,7.3849]
[1720218362617,20.17,135.44,135.37,15.155]
[1720218362820,20.17,135.44,135.4,7.3854]
[1720218363530,20.17,135.44,135.37,59.585]
[1720218363531,20.0,135.44,135.37,59.585]
[1720218363707,6.4029,135.45,135.43,7.3838]
[1720218365121,6.4029,135.45,135.42,7.3843]
[1720218365516,6.4029,135.45,135.37,59.585]
[1720218365824,0.17,135.44,135.37,15.155]
[1720218366126,20.17,135.44,135.39,7.3857]
[1720218366306,7.72895271,135.43,135.4,7.3854]
[1720218366506,20.17,135.44,135.4,7.3854]
[1720218368828,20.0,135.44,135.41,7.3849]
[1720218369528,14.13174167,135.45,135.37,86.385]
[1720218369829,0.8891015,135.46,135.43,7.3835]
[1720218370029,0.8891015,135.46,135.44,7.3833]
[1720218371114,0.8891015,135.46,135.45,7.3827]
[1720218371722,0.8891015,135.46,135.44,7.3831]
[1720218371919,0.8891015,135.46,135.4,26.8]
[1720218372127,0.8891015,135.46,135.43,7.3838]
[1720218372333,0.17,135.45,135.42,7.3842]
[1720218373011,0.17,135.45,135.43,7.3838]
[1720218373213,116.1703,135.45,135.41,7.3848]
[1720218373638,16.1703,135.45,135.41,7.3848]
[1720218373936,16.1703,135.45,135.42,7.3843]
[1720218376335,116.1703,135.45,135.42,7.3843]
[1720218376711,116.1703,135.45,135.43,7.3838]
[1720218378211,116.1703,135.45,135.37,15.155]
[1720218378212,0.17,135.45,135.44,7.3833]
[1720218378416,0.8891015,135.46,135.45,7.3827]
[1720218379511,0.8891015,135.46,135.44,7.3831]
[1720218380429,0.8891015,135.46,135.45,7.3827]
[1720218380618,1.0591015,135.46,135.45,7.3827]
[1720218383762,0.8891015,135.46,135.45,7.3827]
[1720218384147,0.8891015,135.46,135.39,44.43]
[1720218385344,0.8891015,135.46,135.45,7.3827]
[1720218389956,0.8891015,135.46,135.45,20.7227]
[1720218390129,0.8891015,135.46,135.45,74.0827]
[1720218391830,0.8891015,135.46,135.45,7.3827]
[1720218392031,0.8891015,135.46,135.45,51.8127]
[1720218395430,0.8891015,135.46,135.45,51.9827]
[1720218396533,1.5e-06,135.46,135.45,51.9827]
[1720218396745,1.5e-06,135.46,135.45,71.9827]
[1720218399054,1.5e-06,135.46,135.45,71.8127]
[1720218404734,1.5e-06,135.46,135.45,71.9827]
[1720218409657,7.72231404,135.56,135.55,7.3773]
[1720218409858,22.9323,135.57,135.56,7.3768]
[1720218410744,22.9323,135.57,135.55,7.3772]
[1720218411541,22.9323,135.57,135.56,7.3768]
[1720218414860,6.5969,135.57,135.56,7.3768]
[1720218418253,119.9169,135.57,135.52,13.32]
[1720218418450,15.4069,135.55,135.53,7.3783]
[1720218418845,100.0,135.51,135.4,271.2306]
[1720218419169,6.5969,135.52,135.4,16.2306]
[1720218419170,28.7269,135.48,135.4,16.2306]
[1720218419350,28.7269,135.48,135.35,270.0]
[1720218419351,6.5969,135.47,135.37,16.2306]
[1720218419543,13.49,135.46,135.41,13.32]
[1720218419743,0.17,135.46,135.41,13.32]
[1720218419965,13.49,135.46,135.41,13.32]
[1720218420358,13.49,135.46,135.37,16.2306]
[1720218420566,13.32,135.44,135.34,16.2306]
[1720218420768,13.32,135.44,135.39,13.32]
[1720218420945,0.17,135.43,135.39,13.32]
[1720218421644,0.17,135.43,135.35,44.43]
[1720218421844,0.17,135.44,135.35,44.43]
[1720218423358,100.0,135.43,135.34,42.9306]
[1720218423549,100.0,135.41,135.31,60.6606]
[1720218423744,0.17,135.4,135.31,60.6606]
[1720218423951,100.0,135.39,135.31,16.2306]
[1720218424260,0.17,135.4,135.31,16.2306]
[1720218424477,0.17,135.4,135.31,60.6606]
[1720218425085,100.0,135.39,135.31,16.2306]
[1720218425405,100.0,135.39,135.27,6.0318]
[1720218425406,106.5969,135.37,135.27,16.2306]
[1720218425777,0.17,135.36,135.27,16.2306]
[1720218430320,100.0,135.32,135.24,26.7]
[1720218430482,100.0,135.32,135.21,26.8]
[1720218430483,6.6407,135.31,135.21,26.8]
[1720218430690,0.17,135.3,135.21,26.8]
[1720218431526,100.17,135.3,135.21,26.8]
[1720218432816,100.17,135.3,135.22,20.0]
[1720218434117,0.17,135.3,135.22,20.0]
[1720218435695,0.17,135.3,135.21,64.53]
[1720218437731,100.0,135.29,135.21,0.1]
[1720218437904,6.6407,135.26,135.21,0.1]
[1720218438096,16.3015,135.25,135.21,0.1]
[1720218439433,116.3015,135.25,135.21,0.1]
[1720218440693,100.0,135.23,135.21,0.1]
[1720218440896,0.17,135.22,135.21,0.1]
[1720218441126,6.8107,135.22,135.21,0.1]
[1720218442930,6.6407,135.22,135.21,0.1]
[1720218443925,6.8107,135.22,135.21,0.1]
[1720218445013,22.7722,135.25,135.21,0.1]
[1720218445334,6.6407,135.25,135.21,0.1]
[1720218449113,14.29160843,135.29,135.21,0.1]
[1720218451131,14.29160843,135.29,135.21,44.53]
[1720218451534,114.29160843,135.29,135.21,44.53]
[1720218451729,0.17,135.28,135.21,44.53]
[1720218451933,0.17,135.28,135.21,0.1]
[1720218454059,100.0,135.27,135.21,0.1]
[1720218454211,0.17,135.26,135.21,0.1]
[1720218454416,0.17,135.28,135.21,0.1]
[1720218454642,100.0,135.27,135.21,0.1]
[1720218454849,0.17,135.26,135.21,0.1]
[1720218455943,114.29160843,135.29,135.21,0.1]
[1720218456130,0.17,135.28,135.21,0.1]
[1720218457346,114.29160843,135.29,135.21,0.1]
[1720218457722,100.0,135.27,135.21,0.1]
[1720218458657,0.17,135.26,135.21,0.1]
[1720218459858,100.0,135.25,135.21,0.1]
[1720218460028,0.17,135.24,135.21,0.1]
[1720218461246,100.0,135.23,135.21,0.1]
[1720218461435,0.17,135.22,135.21,0.1]
[1720218464437,100.0,135.25,135.21,0.1]
[1720218464639,0.17,135.24,135.21,0.1]
[1720218469747,13.39,135.23,135.21,0.1]
[1720218471553,113.39,135.23,135.21,0.1]
[1720218471763,0.17,135.22,135.21,0.1]
[1720218471928,13.56,135.22,135.21,0.1]
[1720218472728,100.0,135.21,135.14,13.39]
[1720218472934,0.17,135.2,135.14,13.39]
[1720218473126,13.39,135.19,135.14,13.39]
[1720218473327,0.17,135.18,135.14,13.39]
[1720218474149,0.17,135.18,135.13,16.1915]
[1720218474150,13.39,135.2,135.15,13.39]
[1720218474351,0.17,135.19,135.15,13.39]
[1720218474946,13.39,135.2,135.15,13.39]
[1720218475348,100.0,135.19,135.14,13.39]
[1720218475541,0.17,135.18,135.14,13.39]
[1720218475741,13.56,135.18,135.13,29.5815]
[1720218476860,13.56,135.18,135.13,16.1915]
[1720218476861,13.39,135.17,135.13,16.1915]
[1720218477171,13.39,135.17,135.12,0.8891015]
[1720218477172,13.39,135.15,135.12,0.8891015]
[1720218477330,0.17,135.14,135.12,0.8891015]
[1720218477535,13.39,135.16,135.12,0.8891015]
[1720218477758,0.17,135.15,135.12,0.8891015]
[1720218478941,0.17,135.16,135.12,0.8891015]
[1720218479149,13.56,135.16,135.12,0.8891015]
[1720218479664,13.39,135.15,135.12,0.8891015]
[1720218481163,7.9031472,135.16,135.12,0.8891015]
[1720218481418,13.56,135.16,135.12,0.8891015]
[1720218482639,13.39,135.15,135.12,0.8891015]
[1720218483148,0.17,135.16,135.12,0.8891015]
[1720218483149,13.56,135.16,135.12,0.8891015]
[1720218483945,6.285,135.17,135.12,0.8891015]
[1720218484146,19.675,135.17,135.12,14.2791015]
[1720218484363,0.17,135.18,135.13,13.39]